[Event "XVI Memorial Lezcano Montalvo 2024"]
[Site "Gran Canaria"]
[Date "2024.03.29"]
[Round "7.12"]
[White "Barlov, Dragan"]
[Black "Cruz Pino, Adrian"]
[Result "1-0"]
[ECO "C60"]
[WhiteElo "2387"]
[BlackElo "2015"]
[Annotator "RC"]
[PlyCount "111"]
[EventDate "2024.03.23"]
[EventType "swiss"]
[EventCountry "ESP"]
[SourceTitle "playchess.com"]
[Source "ChessBase"]
[SourceQuality "1"]
[TimeControl "5400+30"]

1. e4 {[%emt 1:31:00]} e5 {[%emt 0:00:24]} 2. Nf3 {[%emt 0:00:00]} Nc6 {[%emt 0:00:06]} 3. Bb5 {[%emt 0:00:00]} Nge7 {[%emt 0:00:19]} 4. O-O {[%emt 0:00:00]} Ng6 {[%emt 0:00:28]} 5. c3 {[%emt 0:00:00]} d6 {[%emt 0:03:17]} 6. d4 {[%emt 0:00:00]} Bd7 {[%emt 0:00:17]} 7. Re1 {[%emt 0:00:00]} Be7 {[%emt 0:00:06]} 8. Nbd2 {[%emt 0:00:00]} O-O {[%emt 0:00:05]} 9. Nf1 {[%emt 0:00:00]} a6 {[%emt 0:00:16]} 10. Be2 {[%emt 0:00:00]} Nf4 {[%emt 0:06:10]} 11. Ne3 {[%emt 0:00:00]} Nxe2+ {[%emt 0:01:15]} 12. Rxe2 {[%emt 0:00:00]} Qc8 {[%emt 0:11:32]} 13. b3 {[%emt 0:00:00]} Re8 {[%emt 0:01:49]} 14. Bb2 {[%emt 0:00:00]} f6 {[%emt 0:00:49]} 15. Rd2 {[%emt 0:00:00]} Bf8 {[%emt 0:01:14]} 16. Qc2 {[%emt 0:00:00]} g6 {[%emt 0:10:22]} 17. c4 {[%emt 0:00:00]} Bg7 {[%emt 0:02:10]} 18. a3 {[%emt 0:00:00]} Bg4 {[%emt 0:12:10]} 19. Nxg4 {[%emt 0:00:00]} Qxg4 {[%emt 0:00:03]} 20. h3 {[%emt 0:00:00]} Qc8 {[%emt 0:16:07]} 21. dxe5 {[%emt 0:00:00]} dxe5 {[%emt 0:01:38]} 22. b4 {[%emt 0:00:00]} Qe6 {[%emt 0:01:17]} 23. Rad1 {[%emt 0:00:00]} Bf8 {[%emt 0:06:41]} 24. Rd5 {[%emt 0:00:00]} Nd8 {[%emt 0:02:05]} 25. c5 {[%emt 0:00:00]} Nf7 {[%emt 0:02:08]} 26. Nd2 {[%emt 0:00:00]} c6 {[%emt 0:04:09]} 27. Rd3 {[%emt 0:00:00]} Red8 {[%emt 0:00:09]} 28. Nc4 {[%emt 0:00:00]} Rxd3 {[%emt 0:00:09]} 29. Rxd3 {[%emt 0:00:00]} Rd8 {[%emt 0:00:07]} 30. Na5 {[%emt 0:00:00]} Rxd3 {[%emt 0:01:01]} 31. Qxd3 {[%emt 0:00:00]} Qc8 {[%emt 0:00:29]} 32. f4 {[%emt 0:03:21]} Be7 {[%emt 0:00:28]} 33. fxe5 {[%emt 0:00:22]} fxe5 {[%emt 0:00:05]} 34. Kh2 {[%emt 0:00:59]} Bd8 {[%emt 0:00:32]} 35. Nc4 {[%emt 0:00:20]} Bc7 {[%emt 0:00:06]} 36. Nd2 {[%emt 0:02:54]} Qe6 {[%emt 0:00:08]} 37. Nf3 {[%emt 0:00:12]} Kf8 {[%emt 0:02:34]} 38. a4 {[%emt 0:01:23]} Ke8 {[%emt 0:00:04]} 39. Qc2 {[%emt 0:02:59]} Qa2 {[%emt 0:01:19]} 40. Nd2 {[%emt 0:02:28]} Qe6 {[%emt 0:00:14]} 41. Bc1 {[%emt 0:00:22]} Ke7 {[%emt 0:02:14]} 42. Nf3 {[%emt 0:00:06]} Ke8 {[%emt 0:00:18]} 43. Be3 {[%emt 0:00:24]} Bd8 {[%emt 0:00:33]} 44. Kg1 {[%emt 0:01:26]} Bc7 {[%emt 0:00:33]} 45. Nd2 {[%emt 0:01:44]} Ke7 {[%emt 0:00:20]} 46. Nc4 {[%emt 0:00:34]} Ke8 {[%emt 0:01:55]} 47. Na3 {[%emt 0:00:10]} Bd8 {[%emt 0:00:34]} 48. b5 {[%emt 0:00:22]} axb5 {[%emt 0:00:04]} 49. axb5 {[%emt 0:00:04]} Be7 {[%emt 0:00:59]} 50. Kh2 {[%emt 0:00:26]} b6 {[%emt 0:00:48]} 51. cxb6 {[%emt 0:01:15]} Bxa3 {[%emt 0:03:28]} 52. bxc6 {[%emt 0:00:06]} Bd6 {[%emt 0:01:29]} 53. c7 {[%emt 0:00:32]} Qc8 {[%emt 0:00:21]} 54. Qc6+ {[%emt 0:00:16]} Ke7 {[%emt 0:00:05]} 55. Bc5 {[%emt 0:00:59]} h5 {[%emt 0:00:52]} 56. b7 {[%emt 0:00:22]} 1-0

[Event "XVI Memorial Lezcano Montalvo 2024"]
[Site "Gran Canaria"]
[Date "2024.03.29"]
[Round "7.13"]
[White "Garcia Blanco, Omar"]
[Black "Zhou, Lepu Coco"]
[Result "1-0"]
[ECO "C06"]
[WhiteElo "2377"]
[BlackElo "1980"]
[Annotator "RC"]
[PlyCount "85"]
[EventDate "2024.03.23"]
[EventType "swiss"]
[EventCountry "ESP"]
[SourceTitle "playchess.com"]
[Source "ChessBase"]
[SourceQuality "1"]
[TimeControl "5400+30"]

1. e4 {[%emt 0:07:49]} e6 {[%emt 0:00:19]} 2. d4 {[%emt 0:00:16]} d5 {[%emt 0:00:07]} 3. Nd2 {[%emt 0:00:40]} Be7 {[%emt 0:00:54]} 4. Bd3 {[%emt 0:00:55]} Nf6 {[%emt 0:01:49]} 5. e5 {[%emt 0:00:25]} Nfd7 {[%emt 0:00:11]} 6. c3 {[%emt 0:00:27]} c5 {[%emt 0:00:44]} 7. Ne2 {[%emt 0:03:27]} Nc6 {[%emt 0:08:02]} 8. O-O {[%emt 0:00:24]} g5 {[%emt 0:09:12]} 9. f4 {[%emt 0:05:24]} Qb6 {[%emt 0:09:21]} 10. Kh1 {[%emt 0:02:10]} g4 {[%emt 0:06:35]} 11. f5 {[%emt 0:12:38]} cxd4 {[%emt 0:06:26]} 12. cxd4 {[%emt 0:00:23]} Nxd4 {[%emt 0:00:52]} 13. Nxd4 {[%emt 0:00:12]} Qxd4 {[%emt 0:00:07]} 14. Nb3 {[%emt 0:01:03]} Qxe5 {[%emt 0:02:19]} 15. fxe6 {[%emt 0:01:14]} fxe6 {[%emt 0:01:53]} 16. Re1 {[%emt 0:31:49]} Qf6 {[%emt 0:08:26]} 17. Qxg4 {[%emt 0:01:13]} Ne5 {[%emt 0:00:58]} 18. Qh5+ {[%emt 0:01:06]} Ng6 {[%emt 0:00:08]} 19. Be3 {[%emt 0:04:58]} e5 {[%emt 0:10:31]} 20. Rf1 {[%emt 0:02:24]} Qe6 {[%emt 0:00:26]} 21. Bxg6+ {[%emt 0:04:04]} Qxg6 {[%emt 0:01:17]} 22. Qxe5 {[%emt 0:00:06]} Rg8 {[%emt 0:00:50]} 23. Qxd5 {[%emt 0:00:22]} Bd7 {[%emt 0:06:37]} 24. Nd4 {[%emt 0:00:06]} O-O-O {[%emt 0:01:07]} 25. Bf4 {[%emt 0:01:28]} Bc6 {[%emt 0:02:04]} 26. Nxc6 {[%emt 0:00:07]} bxc6 {[%emt 0:00:07]} 27. Qf3 {[%emt 0:00:12]} Rd3 {[%emt 0:00:24]} 28. Qe2 {[%emt 0:01:07]} Bd6 {[%emt 0:03:23]} 29. Bxd6 {[%emt 0:00:32]} Rxd6 {[%emt 0:00:49]} 30. Rf3 {[%emt 0:00:34]} Kd8 {[%emt 0:03:04]} 31. Rg3 {[%emt 0:02:25]} Qe8 {[%emt 0:00:25]} 32. Rxg8 {[%emt 0:00:12]} Qxg8 {[%emt 0:00:08]} 33. Re1 {[%emt 0:00:15]} Rd7 {[%emt 0:01:24]} 34. Qe5 {[%emt 0:02:06]} Kc8 {[%emt 0:02:56]} 35. Qa5 {[%emt 0:00:51]} Qc4 {[%emt 0:03:55]} 36. h3 {[%emt 0:00:58]} Rf7 {[%emt 0:01:31]} 37. Re8+ {[%emt 0:03:36]} Kb7 {[%emt 0:00:15]} 38. Qe5 {[%emt 0:00:04]} Qxa2 {[%emt 0:04:55]} 39. Rb8+ {[%emt 0:00:08]} Ka6 {[%emt 0:00:03]} 40. Qe2+ {[%emt 0:00:09]} Ka5 {[%emt 0:00:08]} 41. Qd2+ {[%emt 0:00:03]} Ka6 {[%emt 0:00:08]} 42. Qd3+ {[%emt 0:00:07]} Ka5 {[%emt 0:00:15]} 43. Qc3+ {[%emt 0:00:07]} 1-0

[Event "XVI Memorial Lezcano Montalvo 2024"]
[Site "Gran Canaria"]
[Date "2024.03.29"]
[Round "7.14"]
[White "Hernando Rodrigo, Jose Maria"]
[Black "Camino Carrio, Nicanor"]
[Result "1-0"]
[ECO "E69"]
[WhiteElo "2257"]
[BlackElo "1962"]
[Annotator "RC"]
[PlyCount "85"]
[EventDate "2024.03.23"]
[EventType "swiss"]
[EventCountry "ESP"]
[SourceTitle "playchess.com"]
[Source "ChessBase"]
[SourceQuality "1"]
[TimeControl "5400+30"]

1. d4 {[%emt 0:00:01]} Nf6 {[%emt 0:00:49]} 2. c4 {[%emt 0:00:32]} g6 {[%emt 0:00:26]} 3. Nc3 {[%emt 0:00:09]} Bg7 {[%emt 0:00:38]} 4. Nf3 {[%emt 0:04:39]} O-O {[%emt 0:00:54]} 5. g3 {[%emt 0:00:11]} d6 {[%emt 0:00:36]} 6. Bg2 {[%emt 0:00:06]} Nbd7 {[%emt 0:00:23]} 7. O-O {[%emt 0:00:11]} c6 {[%emt 0:00:58]} 8. e4 {[%emt 0:03:23]} e5 {[%emt 0:00:26]} 9. h3 {[%emt 0:00:20]} Qb6 {[%emt 0:00:38]} 10. c5 {[%emt 0:05:56]} dxc5 {[%emt 0:00:18]} 11. dxe5 {[%emt 0:00:07]} Ne8 {[%emt 0:00:58]} 12. Qc2 {[%emt 0:09:11]} Nxe5 {[%emt 0:05:20]} 13. Nxe5 {[%emt 0:01:16]} Bxe5 {[%emt 0:00:07]} 14. Na4 {[%emt 0:00:07]} Qc7 {[%emt 0:04:39]} 15. Nxc5 {[%emt 0:00:12]} b6 {[%emt 0:04:03]} 16. Nd3 {[%emt 0:01:59]} Ba6 {[%emt 0:01:26]} 17. Rd1 {[%emt 0:10:59]} Bd6 {[%emt 0:03:44]} 18. Bh6 {[%emt 0:06:09]} Ng7 {[%emt 0:00:24]} 19. Qc3 {[%emt 0:06:29]} f6 {[%emt 0:00:14]} 20. Rac1 {[%emt 0:00:06]} Rac8 {[%emt 0:01:52]} 21. Nf4 {[%emt 0:00:21]} Be5 {[%emt 0:02:08]} 22. Qb3+ {[%emt 0:00:45]} Qf7 {[%emt 0:01:57]} 23. Bxg7 {[%emt 0:00:19]} Qxb3 {[%emt 0:01:29]} 24. axb3 {[%emt 0:00:03]} Bxf4 {[%emt 0:00:08]} 25. gxf4 {[%emt 0:02:47]} Kxg7 {[%emt 0:00:10]} 26. Ra1 {[%emt 0:00:08]} Bb5 {[%emt 0:13:42]} 27. Rxa7+ {[%emt 0:00:32]} Rf7 {[%emt 0:02:07]} 28. Rxf7+ {[%emt 0:00:39]} Kxf7 {[%emt 0:00:05]} 29. Rd7+ {[%emt 0:00:05]} Ke6 {[%emt 0:00:06]} 30. Rxh7 {[%emt 0:04:16]} Rd8 {[%emt 0:00:05]} 31. Bf3 {[%emt 0:04:08]} Rd3 {[%emt 0:08:35]} 32. Bg4+ {[%emt 0:02:10]} Kd6 {[%emt 0:00:29]} 33. e5+ {[%emt 0:06:18]} fxe5 {[%emt 0:01:38]} 34. Rd7+ {[%emt 0:00:04]} Kc5 {[%emt 0:00:22]} 35. fxe5 {[%emt 0:00:05]} Rxd7 {[%emt 0:11:10]} 36. Bxd7 {[%emt 0:00:07]} g5 {[%emt 0:00:09]} 37. h4 {[%emt 0:00:42]} gxh4 {[%emt 0:00:51]} 38. f4 {[%emt 0:02:49]} Kd5 {[%emt 0:01:22]} 39. Kg2 {[%emt 0:01:16]} Bd3 {[%emt 0:13:49]} 40. Kh3 {[%emt 0:02:38]} Ke4 {[%emt 0:00:21]} 41. e6 {[%emt 0:01:25]} Kxf4 {[%emt 0:00:12]} 42. e7 {[%emt 0:00:08]} Bg6 {[%emt 0:01:29]} 43. Bxc6 {[%emt 0:00:13]} 1-0

[Event "XVI Memorial Lezcano Montalvo 2024"]
[Site "Gran Canaria"]
[Date "2024.03.29"]
[Round "7.15"]
[White "Marrero Rodriguez, Jorge"]
[Black "Perez Guerra, Raul"]
[Result "0-1"]
[ECO "B80"]
[WhiteElo "2177"]
[BlackElo "2250"]
[Annotator "RC"]
[PlyCount "58"]
[EventDate "2024.03.23"]
[EventType "swiss"]
[EventCountry "ESP"]
[SourceTitle "playchess.com"]
[Source "ChessBase"]
[SourceQuality "1"]
[TimeControl "5400+30"]

1. e4 {[%emt 0:00:43]} c5 {[%emt 0:00:48]} 2. Nf3 {[%emt 0:01:22]} d6 {[%emt 0:00:19]} 3. d4 {[%emt 0:00:42]} cxd4 {[%emt 0:00:10]} 4. Nxd4 {[%emt 0:00:11]} Nf6 {[%emt 0:00:07]} 5. Nc3 {[%emt 0:00:02]} a6 {[%emt 0:00:06]} 6. Be3 {[%emt 0:03:49]} e6 {[%emt 0:00:49]} 7. a3 {[%emt 0:00:36]} Qc7 {[%emt 0:02:18]} 8. g4 {[%emt 0:03:54]} d5 {[%emt 0:02:52]} 9. exd5 {[%emt 0:04:32]} Nxd5 {[%emt 0:00:28]} 10. Nxd5 {[%emt 0:02:32]} exd5 {[%emt 0:00:01]} 11. Qf3 {[%emt 0:08:08]} Qa5+ {[%emt 0:08:32]} 12. Bd2 {[%emt 0:10:32]} Qb6 {[%emt 0:13:24]} 13. Bc3 {[%emt 0:02:32]} Be7 {[%emt 0:00:36]} 14. O-O-O {[%emt 0:07:40]} O-O {[%emt 0:05:08]} 15. Qxd5 {[%emt 0:10:24]} Bf6 {[%emt 0:00:51]} 16. Bc4 {[%emt 0:11:26]} Nc6 {[%emt 0:06:12]} 17. g5 {[%emt 0:06:24]} Be6 {[%emt 0:02:11]} 18. Nxe6 {[%emt 0:05:48]} Bxc3 {[%emt 0:00:06]} 19. bxc3 {[%emt 0:00:09]} fxe6 {[%emt 0:00:01]} 20. Qxe6+ {[%emt 0:00:11]} Kh8 {[%emt 0:00:02]} 21. Rd7 {[%emt 0:04:08]} Qc5 {[%emt 0:02:32]} 22. g6 {[%emt 0:04:21]} Ne5 {[%emt 0:23:14]} 23. Qh3 {[%emt 0:00:14]} Nxg6 {[%emt 0:00:05]} 24. Bb3 {[%emt 0:00:31]} Qxa3+ {[%emt 0:04:35]} 25. Kb1 {[%emt 0:00:16]} Rae8 {[%emt 0:01:07]} 26. Bf7 {[%emt 0:05:30]} Re5 {[%emt 0:00:49]} 27. Rd5 {[%emt 0:03:17]} Nf4 {[%emt 0:01:26]} 28. Qd7 {[%emt 0:00:25]} Rxd5 {[%emt 0:00:26]} 29. Qe7 {[%emt 0:02:31]} Qxe7 {[%emt 0:00:06]} 0-1

[Event "XVI Memorial Lezcano Montalvo 2024"]
[Site "Gran Canaria"]
[Date "2024.03.29"]
[Round "7.16"]
[White "Rivero Tacoronte, Gabriel"]
[Black "Calzetta Ruiz, Monica"]
[Result "0-1"]
[ECO "B38"]
[WhiteElo "1831"]
[BlackElo "2239"]
[Annotator "RC"]
[PlyCount "70"]
[EventDate "2024.03.23"]
[EventType "swiss"]
[EventCountry "ESP"]
[SourceTitle "playchess.com"]
[Source "ChessBase"]
[SourceQuality "1"]
[TimeControl "5400+30"]

1. e4 {[%emt 0:00:03]} c5 {[%emt 0:00:06]} 2. Nf3 {[%emt 0:00:05]} Nc6 {[%emt 0:00:05]} 3. d4 {[%emt 0:00:15]} cxd4 {[%emt 0:00:06]} 4. Nxd4 {[%emt 0:00:03]} g6 {[%emt 0:00:53]} 5. c4 {[%emt 0:00:07]} Bg7 {[%emt 0:03:06]} 6. Be3 {[%emt 0:00:20]} Nf6 {[%emt 0:00:08]} 7. Nc3 {[%emt 0:00:03]} d6 {[%emt 0:00:05]} 8. Be2 {[%emt 0:00:27]} O-O {[%emt 0:00:07]} 9. O-O {[%emt 0:00:27]} Nxd4 {[%emt 0:05:54]} 10. Bxd4 {[%emt 0:00:31]} Nd7 {[%emt 0:00:20]} 11. Bxg7 {[%emt 0:00:35]} Kxg7 {[%emt 0:00:05]} 12. Qd4+ {[%emt 0:07:55]} f6 {[%emt 0:09:13]} 13. Rad1 {[%emt 0:06:58]} Qb6 {[%emt 0:24:40]} 14. Qd2 {[%emt 0:17:03]} Qa5 {[%emt 0:00:39]} 15. a3 {[%emt 0:05:48]} Ne5 {[%emt 0:01:38]} 16. b4 {[%emt 0:01:09]} Qd8 {[%emt 0:10:49]} 17. f4 {[%emt 0:03:28]} Nf7 {[%emt 0:00:41]} 18. Qd3 {[%emt 0:08:06]} Be6 {[%emt 0:00:41]} 19. Qg3 {[%emt 0:03:05]} Rc8 {[%emt 0:08:01]} 20. Nd5 {[%emt 0:02:20]} a5 {[%emt 0:03:54]} 21. Kh1 {[%emt 0:04:18]} axb4 {[%emt 0:01:52]} 22. axb4 {[%emt 0:00:08]} Bxd5 {[%emt 0:02:30]} 23. exd5 {[%emt 0:00:09]} Qb6 {[%emt 0:00:48]} 24. Bd3 {[%emt 0:03:29]} Rc7 {[%emt 0:03:17]} 25. h4 {[%emt 0:04:31]} Qxb4 {[%emt 0:00:36]} 26. h5 {[%emt 0:00:27]} Rh8 {[%emt 0:10:19]} 27. Ra1 {[%emt 0:01:29]} Qc3 {[%emt 0:01:35]} 28. Rfc1 {[%emt 0:00:28]} Qd4 {[%emt 0:00:03]} 29. Bxg6 {[%emt 0:01:17]} Rg8 {[%emt 0:06:52]} 30. Bf5+ {[%emt 0:01:42]} Kh8 {[%emt 0:00:02]} 31. Qh3 {[%emt 0:03:30]} Rxc4 {[%emt 0:00:29]} 32. Rd1 {[%emt 0:00:37]} Qxf4 {[%emt 0:00:11]} 33. g4 {[%emt 0:03:00]} Ng5 {[%emt 0:00:36]} 34. Qd3 {[%emt 0:01:11]} Nf3 {[%emt 0:02:02]} 35. Qe2 {[%emt 0:06:18]} Qg3 {[%emt 0:01:12]} 0-1

[Event "XVI Memorial Lezcano Montalvo 2024"]
[Site "Gran Canaria"]
[Date "2024.03.29"]
[Round "7.17"]
[White "Guerrero Orihuela, Jose Luis"]
[Black "Morales Camacho, Julian"]
[Result "1/2-1/2"]
[ECO "D36"]
[WhiteElo "1948"]
[BlackElo "2186"]
[Annotator "RC"]
[PlyCount "83"]
[EventDate "2024.03.23"]
[EventType "swiss"]
[EventCountry "ESP"]
[SourceTitle "playchess.com"]
[Source "ChessBase"]
[SourceQuality "1"]
[TimeControl "5400+30"]

1. d4 {[%emt 0:00:02]} d5 {[%emt 0:03:07]} 2. c4 {[%emt 0:01:46]} e6 {[%emt 0:00:05]} 3. Nc3 {[%emt 0:00:10]} h6 {[%emt 0:00:05]} 4. Nf3 {[%emt 0:00:09]} Nf6 {[%emt 0:00:04]} 5. Bf4 {[%emt 0:00:04]} Bd6 {[%emt 0:00:05]} 6. Be5 {[%emt 0:00:15]} c6 {[%emt 0:03:44]} 7. e3 {[%emt 0:03:18]} O-O {[%emt 0:02:17]} 8. Qc2 {[%emt 0:06:09]} Qe7 {[%emt 0:00:32]} 9. cxd5 {[%emt 0:03:15]} exd5 {[%emt 0:00:22]} 10. Bd3 {[%emt 0:00:09]} Nbd7 {[%emt 0:00:33]} 11. Bxd6 {[%emt 0:00:09]} Qxd6 {[%emt 0:00:03]} 12. O-O {[%emt 0:00:26]} Re8 {[%emt 0:01:06]} 13. Rab1 {[%emt 0:06:04]} a5 {[%emt 0:04:57]} 14. Rbe1 {[%emt 0:00:08]} Rd8 {[%emt 0:10:58]} 15. Ne2 {[%emt 0:05:37]} b6 {[%emt 0:00:54]} 16. Ne5 {[%emt 0:07:03]} c5 {[%emt 0:08:02]} 17. f4 {[%emt 0:04:39]} Ra7 {[%emt 0:05:58]} 18. Ng3 {[%emt 0:01:40]} Rc7 {[%emt 0:00:41]} 19. Qe2 {[%emt 0:04:27]} Nf8 {[%emt 0:02:28]} 20. Kh1 {[%emt 0:08:07]} Ne6 {[%emt 0:03:17]} 21. Nf5 {[%emt 0:04:22]} Qf8 {[%emt 0:04:05]} 22. g4 {[%emt 0:02:36]} Ne4 {[%emt 0:02:41]} 23. g5 {[%emt 0:07:35]} Nxd4 {[%emt 0:10:22]} 24. Nxh6+ {[%emt 0:02:28]} gxh6 {[%emt 0:00:31]} 25. exd4 {[%emt 0:00:04]} hxg5 {[%emt 0:04:24]} 26. Qh5 {[%emt 0:03:14]} Qg7 {[%emt 0:06:59]} 27. fxg5 {[%emt 0:06:09]} cxd4 {[%emt 0:04:53]} 28. Ng4 {[%emt 0:08:20]} Bxg4 {[%emt 0:00:18]} 29. Qxg4 {[%emt 0:00:06]} Re7 {[%emt 0:00:59]} 30. Bxe4 {[%emt 0:00:49]} dxe4 {[%emt 0:00:06]} 31. Rxe4 {[%emt 0:00:05]} Rxe4 {[%emt 0:00:35]} 32. Qxe4 {[%emt 0:00:32]} Rd6 {[%emt 0:08:23]} 33. Rd1 {[%emt 0:07:50]} Re6 {[%emt 0:03:19]} 34. Qd5 {[%emt 0:02:32]} Qe5 {[%emt 0:03:43]} 35. Qxd4 {[%emt 0:01:58]} Qxd4 {[%emt 0:00:25]} 36. Rxd4 {[%emt 0:00:05]} Re2 {[%emt 0:00:53]} 37. b4 {[%emt 0:01:03]} Rxa2 {[%emt 0:01:42]} 38. bxa5 {[%emt 0:00:05]} bxa5 {[%emt 0:00:11]} 39. Rd6 {[%emt 0:00:10]} Kg7 {[%emt 0:00:44]} 40. Ra6 {[%emt 0:00:11]} Ra4 {[%emt 0:02:15]} 41. h3 {[%emt 0:00:30]} Ra2 {[%emt 0:00:23]} 42. Kg1 {[%emt 0:00:12]} 1/2-1/2

[Event "XVI Memorial Lezcano Montalvo 2024"]
[Site "Gran Canaria"]
[Date "2024.03.29"]
[Round "7.18"]
[White "Ramos Santana, Marcelino"]
[Black "Hernandez Leon, Sergio"]
[Result "1/2-1/2"]
[ECO "B15"]
[WhiteElo "1897"]
[BlackElo "2172"]
[Annotator "RC"]
[PlyCount "92"]
[EventDate "2024.03.23"]
[EventType "swiss"]
[EventCountry "ESP"]
[SourceTitle "playchess.com"]
[Source "ChessBase"]
[SourceQuality "1"]
[TimeControl "5400+30"]

1. e4 {[%emt 0:03:15]} g6 {[%emt 0:00:05]} 2. d4 {[%emt 0:00:23]} Bg7 {[%emt 0:00:05]} 3. Nc3 {[%emt 0:00:04]} c6 {[%emt 0:00:04]} 4. Be3 {[%emt 0:00:08]} d5 {[%emt 0:00:24]} 5. Qd2 {[%emt 0:01:39]} Nf6 {[%emt 0:04:31]} 6. e5 {[%emt 0:04:54]} Ng4 {[%emt 0:01:15]} 7. Bf4 {[%emt 0:00:32]} h5 {[%emt 0:00:13]} 8. Bd3 {[%emt 0:01:20]} c5 {[%emt 0:10:04]} 9. h3 {[%emt 0:18:54]} cxd4 {[%emt 0:06:37]} 10. Bb5+ {[%emt 0:00:52]} Bd7 {[%emt 0:00:49]} 11. Bxd7+ {[%emt 0:04:27]} Qxd7 {[%emt 0:01:36]} 12. Qxd4 {[%emt 0:00:25]} Nc6 {[%emt 0:01:44]} 13. Qxd5 {[%emt 0:00:52]} Qf5 {[%emt 0:00:15]} 14. Qe4 {[%emt 0:01:57]} Qxe4+ {[%emt 0:02:28]} 15. Nxe4 {[%emt 0:00:05]} Ngxe5 {[%emt 0:00:03]} 16. O-O-O {[%emt 0:06:40]} Rc8 {[%emt 0:00:21]} 17. Kb1 {[%emt 0:11:23]} Nc4 {[%emt 0:01:20]} 18. Bc1 {[%emt 0:01:15]} Nd4 {[%emt 0:06:05]} 19. c3 {[%emt 0:01:40]} Ne6 {[%emt 0:01:34]} 20. Nf3 {[%emt 0:00:52]} b5 {[%emt 0:00:08]} 21. a3 {[%emt 0:01:11]} a5 {[%emt 0:00:57]} 22. Rhe1 {[%emt 0:00:09]} O-O {[%emt 0:02:00]} 23. Nfg5 {[%emt 0:02:18]} Nxg5 {[%emt 0:05:09]} 24. Bxg5 {[%emt 0:02:40]} f5 {[%emt 0:07:11]} 25. Nd2 {[%emt 0:08:40]} Nxb2 {[%emt 0:13:07]} 26. Kxb2 {[%emt 0:00:29]} Rxc3 {[%emt 0:00:07]} 27. Rxe7 {[%emt 0:09:03]} Bh8 {[%emt 0:03:06]} 28. Kb1 {[%emt 0:05:31]} Rxa3 {[%emt 0:01:37]} 29. Rc7 {[%emt 0:01:03]} b4 {[%emt 0:01:49]} 30. Nc4 {[%emt 0:01:42]} Ra1+ {[%emt 0:07:04]} 31. Kc2 {[%emt 0:00:12]} b3+ {[%emt 0:06:51]} 32. Kd2 {[%emt 0:00:14]} b2 {[%emt 0:00:43]} 33. Nxb2 {[%emt 0:01:05]} Ra2 {[%emt 0:02:08]} 34. Ke1 {[%emt 0:02:20]} Rxb2 {[%emt 0:00:30]} 35. g3 {[%emt 0:01:08]} Rb6 {[%emt 0:05:03]} 36. Ra7 {[%emt 0:01:12]} Bc3+ {[%emt 0:01:30]} 37. Kf1 {[%emt 0:00:11]} Rf7 {[%emt 0:01:13]} 38. Ra8+ {[%emt 0:00:24]} Kh7 {[%emt 0:02:41]} 39. h4 {[%emt 0:00:53]} Rbb7 {[%emt 0:00:46]} 40. Rd3 {[%emt 0:00:41]} Rbc7 {[%emt 0:01:02]} 41. Bd8 {[%emt 0:01:29]} Rc5 {[%emt 0:00:24]} 42. Bb6 {[%emt 0:00:37]} Rc6 {[%emt 0:02:57]} 43. Bxa5 {[%emt 0:00:28]} Bxa5 {[%emt 0:00:07]} 44. Rxa5 {[%emt 0:00:14]} f4 {[%emt 0:00:04]} 45. Rf3 {[%emt 0:01:22]} Rcf6 {[%emt 0:03:19]} 46. Kg1 {[%emt 0:06:37]} Kg7 {[%emt 0:02:24]} 1/2-1/2

[Event "XVI Memorial Lezcano Montalvo 2024"]
[Site "Gran Canaria"]
[Date "2024.03.29"]
[Round "7.19"]
[White "Gonzalez Martinez, Miguel Angel"]
[Black "Sosa Suarez, Carla Cristina"]
[Result "0-1"]
[ECO "B40"]
[WhiteElo "2158"]
[BlackElo "1980"]
[Annotator "RC"]
[PlyCount "96"]
[EventDate "2024.03.23"]
[EventType "swiss"]
[EventCountry "ESP"]
[SourceTitle "playchess.com"]
[Source "ChessBase"]
[SourceQuality "1"]
[TimeControl "5400+30"]

1. e4 {[%emt 0:00:19]} e6 {[%emt 0:00:10]} 2. d3 {[%emt 0:00:32]} c5 {[%emt 0:00:28]} 3. Nf3 {[%emt 0:00:17]} Nc6 {[%emt 0:00:13]} 4. g3 {[%emt 0:00:39]} e5 {[%emt 0:00:43]} 5. Bg2 {[%emt 0:01:04]} g6 {[%emt 0:01:28]} 6. Be3 {[%emt 0:00:44]} d6 {[%emt 0:01:07]} 7. O-O {[%emt 0:00:13]} Bg7 {[%emt 0:00:56]} 8. c3 {[%emt 0:00:10]} Nge7 {[%emt 0:04:44]} 9. a3 {[%emt 0:00:11]} a5 {[%emt 0:02:42]} 10. a4 {[%emt 0:00:09]} O-O {[%emt 0:00:04]} 11. Na3 {[%emt 0:00:08]} h6 {[%emt 0:01:15]} 12. Nd2 {[%emt 0:01:00]} Be6 {[%emt 0:05:56]} 13. Nb5 {[%emt 0:02:03]} Na7 {[%emt 0:08:52]} 14. Nxa7 {[%emt 0:01:44]} Rxa7 {[%emt 0:00:01]} 15. b4 {[%emt 0:00:10]} axb4 {[%emt 0:00:31]} 16. cxb4 {[%emt 0:00:03]} b6 {[%emt 0:02:33]} 17. a5 {[%emt 0:13:24]} bxa5 {[%emt 0:02:32]} 18. bxc5 {[%emt 0:01:33]} dxc5 {[%emt 0:01:21]} 19. Bxc5 {[%emt 0:00:08]} Rd7 {[%emt 0:02:21]} 20. Ra3 {[%emt 0:04:08]} Qc7 {[%emt 0:09:21]} 21. Rc3 {[%emt 0:05:38]} Rb8 {[%emt 0:10:23]} 22. Qc2 {[%emt 0:02:03]} Qd8 {[%emt 0:00:37]} 23. Ba3 {[%emt 0:06:39]} Bf8 {[%emt 0:02:21]} 24. Rc1 {[%emt 0:01:20]} Nc6 {[%emt 0:10:21]} 25. Nf3 {[%emt 0:24:12]} Bxa3 {[%emt 0:03:38]} 26. Rxa3 {[%emt 0:01:55]} Nb4 {[%emt 0:02:52]} 27. Qd2 {[%emt 0:02:08]} Nxd3 {[%emt 0:03:48]} 28. Rf1 {[%emt 0:02:45]} Rb5 {[%emt 0:15:03]} 29. Qxh6 {[%emt 0:00:39]} Qf8 {[%emt 0:00:06]} 30. Qxf8+ {[%emt 0:00:12]} Kxf8 {[%emt 0:00:01]} 31. h4 {[%emt 0:05:37]} Bb3 {[%emt 0:01:31]} 32. Rb1 {[%emt 0:03:39]} a4 {[%emt 0:01:07]} 33. Bf1 {[%emt 0:01:34]} Rc5 {[%emt 0:01:19]} 34. Kg2 {[%emt 0:01:27]} Nb4 {[%emt 0:01:09]} 35. Raxb3 {[%emt 0:02:12]} axb3 {[%emt 0:00:02]} 36. Rxb3 {[%emt 0:00:01]} Nc6 {[%emt 0:00:51]} 37. Rb6 {[%emt 0:04:00]} Nd4 {[%emt 0:01:55]} 38. Ng5 {[%emt 0:01:44]} Rc2 {[%emt 0:01:12]} 39. Bd3 {[%emt 0:01:23]} Rc3 {[%emt 0:01:08]} 40. Bf1 {[%emt 0:03:22]} Ra7 {[%emt 0:00:34]} 41. g4 {[%emt 0:01:33]} Kg7 {[%emt 0:01:18]} 42. h5 {[%emt 0:01:41]} gxh5 {[%emt 0:00:25]} 43. gxh5 {[%emt 0:00:02]} f6 {[%emt 0:00:16]} 44. Nh3 {[%emt 0:00:52]} Rf7 {[%emt 0:00:47]} 45. Ng1 {[%emt 0:01:20]} Rc2 {[%emt 0:00:56]} 46. Bd3 {[%emt 0:00:18]} Rc3 {[%emt 0:00:30]} 47. Be2 {[%emt 0:00:44]} Kh6 {[%emt 0:01:17]} 48. Rb8 {[%emt 0:03:02]} Rg7+ {[%emt 0:00:34]} 0-1